bitfinex-derivatives/quotes_ETHF0:USTF0_20260120
["timestamp","ask_amount","ask_price","bid_price","bid_amount"]
[1768889439177,0.81629559,3169.2,3168.2,0.00263765]
[1768889439481,0.81629559,3169.1,3168.2,0.00263765]
[1768889439682,2.32267229,3169.3,3168.2,0.00263765]
[1768889439882,0.81642983,3169.2,3168.2,0.00263765]
[1768889440082,1.72904794,3169.7,3168.2,1.66829972]
[1768889440288,0.8163179,3169.6,3168.2,1.66829972]
[1768889440591,1.72904794,3169.7,3168.2,1.66829972]
[1768889440789,0.81648598,3169.6,3168.2,1.66829972]
[1768889440983,1.72904794,3169.7,3168.2,1.66829972]
[1768889441305,0.81649038,3169.6,3168.2,1.66829972]
[1768889441492,0.81649038,3169.5,3168.2,1.66829972]
[1768889441688,1.72904794,3169.7,3168.2,1.66829972]
[1768889441883,0.81666185,3169.6,3168.2,1.66829972]
[1768889442083,0.81666185,3169.5,3168.2,1.66829972]
[1768889442290,1.72904794,3169.7,3168.2,1.66829972]
[1768889442589,0.81663724,3169.6,3168.2,1.66829972]
[1768889442895,0.81663724,3169.5,3168.2,1.66829972]
[1768889443096,1.72904794,3169.7,3168.2,0.00263765]
[1768889443390,1.32416474,3169.5,3168.3,7.13]
[1768889444487,1.32416474,3169.5,3168.4,3.975]
[1768889444691,1.32416474,3169.5,3168.5,3.975]
[1768889448200,1.32416474,3169.5,3168.2,0.00263765]
[1768889448489,1.32416474,3169.3,3168.3,3.979]
[1768889449498,1.32416474,3169.3,3168.4,3.98]
[1768889454902,1.35593989,3169.7,3168.4,3.98]
[1768889455200,2.01470479,3169.6,3168.4,3.98]
[1768889455500,0.8166449,3169.5,3168.4,3.98]
[1768889455814,0.8166449,3169.4,3168.4,3.98]
[1768889456002,1.19805989,3169.6,3168.4,3.98]
[1768889456303,0.81664416,3169.5,3168.4,3.98]
[1768889456502,0.81664416,3169.4,3168.4,3.98]
[1768889456802,1.19805989,3169.6,3168.4,3.98]
[1768889457000,0.81664385,3169.5,3168.4,3.98]
[1768889457205,0.81664385,3169.4,3168.4,3.98]
[1768889457395,1.19805989,3169.6,3168.4,3.98]
[1768889457595,0.81664384,3169.5,3168.4,3.98]
[1768889457907,0.81664384,3169.4,3168.4,3.98]
[1768889458095,1.19805989,3169.6,3168.4,3.98]
[1768889458295,2.01636232,3169.5,3168.4,3.98]
[1768889458497,0.81830243,3169.4,3168.4,3.98]
[1768889458696,0.81830243,3169.4,3168.5,3.991]
[1768889459299,2.01636232,3169.4,3168.5,3.991]
[1768889459498,0.81831874,3169.3,3168.2,0.00263765]
[1768889459802,1.13424528,3169.7,3168.3,3.992]
[1768889459803,1.19805989,3169.2,3168.3,3.992]
[1768889460509,1.19805989,3169.2,3168.2,0.00263765]
[1768889460704,1.19805989,3169.2,3168.3,3.992]
[1768889461113,1.19805989,3169.2,3168.2,0.00263765]
[1768889461299,0.81836421,3169.1,3168.3,3.993]
[1768889461500,1.19805989,3169.1,3168.3,3.993]
[1768889461901,0.1579,3169.3,3168.3,3.993]
[1768889462100,0.81826274,3169.2,3168.3,3.993]
[1768889462304,0.1579,3169.3,3168.3,3.993]
[1768889462515,0.1579,3169.3,3168.4,3.993]
[1768889472119,0.1579,3169.3,3168.2,0.00263765]
[1768889472319,0.1579,3169.3,3168.5,4.006]
[1768889474824,0.1579,3169.3,3168.6,4.007]
[1768889482131,0.1579,3169.3,3168.2,0.00263765]
[1768889482323,2.49017517,3170.0,3168.7,4.002]
[1768889482523,0.81893494,3169.9,3168.7,4.002]
[1768889482824,2.49017517,3170.0,3168.7,4.002]
[1768889482825,0.81893494,3169.8,3168.7,4.002]
[1768889483130,0.81893494,3169.7,3168.7,4.002]
[1768889483330,0.81893494,3169.6,3168.7,4.002]
[1768889483630,1.04052741,3169.9,3168.7,4.002]
[1768889483932,0.81879258,3169.8,3168.7,4.002]
[1768889484121,0.81879258,3169.7,3168.7,4.002]
[1768889484319,0.81879258,3169.6,3168.2,0.72792035]
[1768889484523,1.04052741,3169.9,3168.3,7.157]
[1768889484727,0.81868177,3169.8,3168.3,7.157]
[1768889484930,0.81868177,3169.7,3168.3,7.157]
[1768889485122,0.81868177,3169.6,3168.3,7.157]
[1768889485322,1.04052741,3169.9,3168.3,7.157]
[1768889485626,0.81859271,3169.8,3168.3,7.157]
[1768889485825,0.81859271,3169.7,3168.3,7.157]
[1768889486126,0.81859271,3169.6,3168.3,7.157]
[1768889486327,0.15788,3169.8,3168.3,7.157]
[1768889486527,0.81851629,3169.7,3168.3,7.157]
[1768889486727,0.81851629,3169.6,3168.3,7.157]
[1768889487026,0.15788,3169.8,3168.3,8.03430933]
[1768889487217,0.81846993,3169.7,3168.3,8.03430933]
[1768889487420,0.81846993,3169.6,3168.3,8.03430933]
[1768889487627,0.15788,3169.8,3168.3,8.03430933]
[1768889487817,0.81845348,3169.7,3168.3,8.03430933]
[1768889488013,0.81845348,3169.6,3168.3,8.03430933]
[1768889488215,1.04054741,3169.5,3168.4,3.997]
[1768889490331,0.88265741,3169.5,3168.4,3.997]
[1768889490932,0.88265741,3169.5,3168.2,0.00263765]
[1768889491131,0.88265741,3169.5,3168.3,3.995]
[1768889491718,0.87730933,3169.7,3168.3,3.995]
[1768889491923,0.81931713,3169.6,3168.3,3.995]
[1768889492126,0.88265741,3169.6,3168.4,3.995]
[1768889494229,1.13424528,3170.0,3168.5,1.39726333]
[1768889494433,3.15344194,3170.4,3168.7,0.87730933]
[1768889494434,1.70202227,3169.9,3168.7,0.87730933]
[1768889494633,1.70202227,3169.9,3168.4,0.87730933]
[1768889494634,0.81936486,3169.8,3168.4,0.87730933]
[1768889494842,0.88265741,3169.9,3168.5,7.15]
[1768889495026,0.82166909,3169.8,3168.4,0.87730933]
[1768889495231,0.88265741,3169.9,3168.5,7.15]
[1768889495436,0.82158696,3169.8,3168.5,7.15]
[1768889495624,0.88265741,3169.9,3168.5,7.15]
[1768889495827,0.8215867,3169.8,3168.5,7.15]
[1768889496034,0.88265741,3169.9,3168.5,7.15]
[1768889496232,0.82153124,3169.8,3168.5,7.15]
[1768889496426,0.88265741,3169.9,3168.5,7.15]
[1768889496628,0.88265741,3169.6,3168.6,3.99]
[1768889497539,0.88265741,3169.6,3168.6,3.989]
[1768889499535,0.88265741,3169.6,3168.3,3.158]
[1768889499741,0.88265741,3169.6,3168.4,8.02130933]
[1768889503440,0.88265741,3169.6,3168.4,7.144]
[1768889503641,0.88265741,3169.6,3168.4,8.02130933]
[1768889503845,0.88265741,3169.6,3168.4,0.87730933]
[1768889504044,0.88265741,3169.6,3168.5,7.14]
[1768889504433,0.88265741,3169.6,3168.6,3.982]
[1768889506243,0.88265741,3169.6,3168.2,0.00263765]
[1768889506443,0.88265741,3169.6,3168.3,7.138]
[1768889506743,0.88265741,3169.6,3168.2,0.00263765]
[1768889507041,0.88265741,3169.6,3168.3,7.138]
[1768889507944,0.88265741,3169.6,3168.2,0.00263765]
[1768889508244,0.88265741,3169.6,3168.4,3.979]
[1768889510245,0.88265741,3169.6,3168.4,4.85630933]
[1768889512556,0.88265741,3169.6,3168.5,3.976]
[1768889516546,0.88265741,3169.6,3168.5,4.85330933]
[1768889517147,0.88265741,3169.6,3168.5,3.976]
[1768889517349,0.88265741,3169.6,3168.5,4.85330933]
[1768889517548,0.88265741,3169.6,3168.5,0.87730933]
[1768889517744,0.88265741,3169.6,3168.6,3.971]
[1768889522763,0.88265741,3169.6,3168.2,3.69768682]
[1768889522953,0.88265741,3169.6,3168.6,3.967]
[1768889528660,0.88265741,3169.6,3168.5,0.87730933]
[1768889528856,0.88265741,3169.6,3168.6,3.961]
[1768889529665,0.88265741,3169.6,3168.6,4.83830933]
[1768889530366,0.15788,3169.7,3168.6,4.83830933]
[1768889530567,0.82500462,3169.6,3168.6,4.83830933]
[1768889530766,0.15788,3169.7,3168.6,4.83830933]
[1768889530965,0.82500461,3169.6,3168.6,4.83830933]
[1768889531154,0.15788,3169.7,3168.6,4.83830933]
[1768889531358,0.82500165,3169.6,3168.6,4.83830933]
[1768889531562,0.15788,3169.7,3168.6,4.83830933]
[1768889531758,0.82499544,3169.6,3168.6,4.83830933]
[1768889531959,0.82105663,3169.7,3168.7,3.958]
[1768889532167,0.66317663,3169.5,3168.8,3.958]
[1768889532560,0.66317663,3169.5,3168.7,3.958]
[1768889535768,0.66317663,3169.5,3168.3,0.87730933]
[1768889536074,0.66317663,3169.4,3168.2,0.00263765]
[1768889536371,0.66317663,3169.4,3168.3,7.113]
[1768889537066,0.66317663,3169.4,3168.3,0.87730933]
[1768889537272,0.66317663,3169.4,3168.4,3.956]
[1768889538275,0.66317663,3169.4,3168.5,3.957]
[1768889539374,0.66317663,3169.4,3168.2,0.87994698]
[1768889539564,0.66317663,3169.4,3168.3,3.957]
[1768889541080,0.66317663,3169.4,3168.3,4.83430933]
[1768889541270,0.66317663,3169.4,3168.4,3.959]
[1768889543978,0.66317663,3169.4,3168.3,0.87730933]
[1768889544189,0.66317663,3169.4,3168.4,3.962]
[1768889546084,0.66317663,3169.4,3168.6,0.87730933]
[1768889546572,0.66317663,3169.4,3168.7,3.963]
[1768889546881,0.15789,3169.5,3168.7,3.963]
[1768889547380,0.48413248,3169.8,3168.7,3.963]
[1768889547581,0.82477798,3169.7,3168.7,3.963]
[1768889547777,0.82477798,3169.6,3168.7,3.963]
[1768889547971,0.82477798,3169.5,3168.7,3.963]
[1768889548171,0.48413248,3169.8,3168.7,3.963]
[1768889548370,0.82413831,3169.7,3168.7,3.963]
[1768889548571,0.82413831,3169.6,3168.7,3.963]
[1768889548774,0.82413831,3169.5,3168.7,3.963]
[1768889548974,0.48413248,3169.8,3168.7,3.963]
[1768889549273,0.8241463,3169.7,3168.7,3.963]
[1768889549467,0.8241463,3169.6,3168.7,3.963]
[1768889549671,0.8241463,3169.5,3168.7,3.963]
[1768889549881,0.48413248,3169.8,3168.7,3.963]
[1768889550070,0.82415729,3169.7,3168.7,3.963]
[1768889550272,0.82415729,3169.6,3168.7,3.963]
[1768889550467,0.48413248,3169.8,3168.7,3.963]
[1768889550468,0.82415729,3169.5,3168.7,3.963]
[1768889550680,0.48413248,3169.8,3168.7,3.963]
[1768889550879,0.82416467,3169.7,3168.7,3.963]
[1768889551079,0.82416467,3169.6,3168.7,3.963]
[1768889551275,0.82416467,3169.5,3168.7,3.963]
[1768889551481,0.48413248,3169.8,3168.7,3.963]
[1768889551680,0.82416728,3169.7,3168.7,3.963]
[1768889551873,0.82416728,3169.6,3168.7,3.963]
[1768889552073,0.82416728,3169.5,3168.7,3.963]
[1768889552268,0.48413248,3169.8,3168.7,3.963]
[1768889552472,1.30830877,3169.7,3168.7,3.963]
[1768889552675,0.82417629,3169.6,3168.7,3.963]
[1768889552874,0.82417629,3169.5,3168.7,3.963]
[1768889553075,0.48413248,3169.7,3168.7,3.963]
[1768889553276,0.82418492,3169.6,3168.7,3.963]
[1768889553478,0.82418492,3169.5,3168.7,3.963]
[1768889553679,0.48413248,3169.7,3168.7,3.963]
[1768889553979,0.82418495,3169.6,3168.7,3.963]
[1768889554178,0.82418495,3169.5,3168.7,3.963]
[1768889554380,0.48413248,3169.7,3168.7,3.963]
[1768889554579,0.82418696,3169.6,3168.7,3.963]
[1768889554782,0.82418696,3169.5,3168.7,3.963]
[1768889554975,0.48413248,3169.7,3168.7,3.963]
[1768889555175,0.8241814,3169.6,3168.7,3.963]
[1768889555383,0.8241814,3169.5,3168.7,3.963]
[1768889555584,0.48413248,3169.7,3168.7,3.963]
[1768889555782,0.82421327,3169.6,3168.7,3.963]
[1768889556083,0.82421327,3169.5,3168.7,3.963]
[1768889556288,0.48413248,3169.7,3168.7,3.963]
[1768889556483,0.82424322,3169.6,3168.7,3.963]
[1768889556784,0.82424322,3169.5,3168.7,3.963]
[1768889556984,0.48413248,3169.7,3168.7,3.963]
[1768889557287,1.30837411,3169.6,3168.7,3.951]
[1768889557485,0.82424163,3169.5,3168.7,3.951]
[1768889561889,0.82424163,3169.5,3168.2,0.00263765]
[1768889562074,0.82424163,3169.5,3168.3,7.104]
[1768889564088,0.82424163,3169.5,3168.2,0.00263765]
[1768889564288,0.82424163,3169.5,3168.3,7.105]
[1768889565491,1.26689752,3169.5,3168.3,7.105]
[1768889565693,0.44265589,3169.5,3168.3,7.105]
[1768889566291,0.44265589,3169.5,3168.2,0.00263765]
[1768889566488,1.13424528,3169.9,3168.2,0.00263765]
[1768889566489,0.44265589,3169.3,3168.2,0.00263765]
[1768889566688,0.44265589,3169.3,3168.3,3.95]
[1768889567781,0.44265589,3169.3,3168.4,3.951]
[1768889567987,0.44265589,3169.3,3168.2,0.00263765]
[1768889568188,0.44265589,3169.3,3168.4,3.951]
[1768889570894,0.44265589,3169.3,3168.2,0.00263765]
[1768889571100,0.44265589,3169.1,3168.2,3.95863765]
[1768889571398,0.44265589,3168.9,3168.2,3.95863765]
[1768889571986,0.44265589,3168.9,3168.2,0.00263765]
[1768889572590,0.44265589,3168.8,3167.1,3.93298677]
[1768889572790,0.44265589,3168.8,3166.8,3.957]
[1768889572791,0.44265589,3168.3,3166.8,3.957]
[1768889572989,0.44265589,3168.1,3166.8,3.957]
[1768889573195,0.38518722,3167.9,3166.8,3.957]
[1768889573601,0.38791043,3167.9,3166.8,0.00273458]
[1768889573791,0.38791043,3167.9,3166.9,3.957]
[1768889573991,0.38791043,3167.9,3166.8,0.00273458]
[1768889574192,0.38791043,3167.9,3166.9,3.957]
[1768889574388,0.38791043,3167.9,3166.8,0.00273458]
[1768889574799,0.38791043,3167.9,3166.9,3.958]
[1768889575098,0.38791043,3167.9,3166.8,0.00273458]
[1768889575412,0.38791043,3167.9,3166.9,3.958]
[1768889576695,0.38791043,3167.9,3167.0,3.959]
[1768889577198,0.38791043,3167.9,3166.8,0.00273458]
[1768889577406,0.38791043,3167.9,3167.1,3.959]
[1768889577698,0.38791043,3167.9,3166.8,0.00273458]
[1768889577898,0.38791043,3167.9,3167.1,3.959]
[1768889580200,0.38791043,3167.9,3167.0,3.956]
[1768889580709,0.38791043,3167.9,3166.8,0.00273458]
[1768889580899,0.38791043,3167.9,3166.9,3.956]
[1768889581098,0.38791043,3167.9,3167.0,3.956]
[1768889581300,0.38791043,3167.9,3166.9,3.956]
[1768889581500,0.38791043,3167.9,3166.8,0.00273458]
[1768889581704,0.38791043,3167.9,3166.8,3.95873458]
[1768889583705,0.38791043,3167.9,3166.9,3.958]
[1768889591011,0.38791043,3167.9,3167.0,3.961]
[1768889591206,0.38791043,3167.9,3167.1,3.961]
[1768889592214,0.38791043,3167.9,3166.8,0.00273458]
[1768889592718,0.38791043,3167.9,3166.9,3.96]
[1768889597518,0.38791043,3167.9,3167.0,3.962]
[1768889600518,0.38791043,3167.9,3167.1,3.96]
[1768889601727,0.38791043,3167.9,3167.2,3.958]
[1768889602427,0.38518722,3167.7,3167.2,3.958]
[1768889603020,0.38518722,3167.7,3166.8,0.00273458]
[1768889603229,0.38518722,3167.7,3166.9,3.957]
[1768889606129,0.38518722,3167.7,3166.8,0.00273458]
[1768889606324,0.38518722,3167.7,3166.9,3.96]
[1768889606826,0.38518722,3167.7,3166.9,3.961]
[1768889607532,0.38518722,3167.7,3166.8,0.00273458]
[1768889607734,0.38518722,3167.7,3166.9,3.962]
[1768889608232,0.38518722,3167.7,3166.8,0.00273458]
[1768889608422,0.38518722,3167.7,3166.9,3.962]
[1768889608727,0.38518722,3167.7,3166.8,0.00273458]
[1768889608931,0.38518722,3167.7,3166.9,3.963]
[1768889614229,0.38518722,3167.7,3166.8,0.00273458]
[1768889614431,0.38518722,3167.7,3166.9,3.97]
[1768889623542,0.38518722,3167.7,3167.0,3.986]
[1768889624340,0.38518722,3167.7,3167.1,3.987]
[1768889625141,0.38518722,3167.7,3166.8,0.00273458]
[1768889625340,0.38518722,3167.7,3166.9,7.147]
[1768889626241,0.38518722,3167.7,3166.8,0.00273458]
[1768889626642,0.38518722,3167.7,3166.9,3.99]
[1768889627550,0.38518722,3167.7,3167.0,3.991]
[1768889629951,0.38518722,3167.7,3166.8,0.00273458]
[1768889630153,0.38518722,3167.7,3167.1,3.994]
[1768889631148,0.38518722,3167.7,3167.2,3.996]
[1768889631843,0.38518722,3167.7,3166.8,0.00273458]
[1768889632041,0.38518722,3167.7,3166.9,3.996]
[1768889633549,0.38518722,3167.7,3166.9,4.87431843]
[1768889634449,0.38518722,3167.7,3166.8,0.00273458]
[1768889634949,0.38518722,3167.7,3166.9,3.999]
[1768889636746,0.38518722,3167.7,3167.0,4.002]
[1768889637954,0.38518722,3167.7,3166.8,0.00273458]
[1768889638147,0.38518722,3167.7,3167.1,4.003]
[1768889638455,0.38518722,3167.7,3166.8,0.00273458]
[1768889638851,0.26267837,3167.5,3166.9,4.004]
[1768889639056,0.26267837,3167.5,3167.0,4.004]
[1768889639448,0.26267837,3167.5,3167.1,4.005]
[1768889641351,0.26267837,3167.5,3166.8,0.00273458]
[1768889641757,0.26267837,3167.5,3166.9,4.007]
[1768889642049,0.26267837,3167.5,3166.8,0.00273458]
[1768889642250,0.26267837,3167.5,3166.9,4.008]
[1768889644459,0.15798,3167.7,3166.9,4.008]
[1768889646858,0.15798,3167.7,3167.0,4.014]
[1768889647260,0.26540158,3167.9,3167.0,4.014]
[1768889647454,0.82469108,3167.8,3167.0,4.014]
[1768889647759,0.26540158,3167.9,3167.1,0.87831843]
[1768889647958,0.82471962,3167.8,3167.1,0.87831843]
[1768889648161,0.26540158,3167.9,3167.1,0.87831843]
[1768889648355,0.82473728,3167.8,3167.1,0.87831843]
[1768889648654,0.26540158,3167.9,3167.1,0.87831843]
[1768889648848,0.82473809,3167.8,3167.1,0.87831843]
[1768889649051,0.26540158,3167.9,3167.1,0.87831843]
[1768889649350,0.82473823,3167.8,3167.1,0.87831843]
[1768889649552,0.26540158,3167.9,3167.1,0.87831843]
[1768889649760,0.82473344,3167.8,3166.8,0.00273458]
[1768889650060,0.26540158,3167.9,3166.9,4.89131843]
[1768889650258,0.82473657,3167.8,3166.9,4.89131843]
[1768889650460,0.26540158,3167.9,3166.9,4.89131843]
[1768889650755,0.26540158,3167.9,3167.2,0.87831843]
[1768889654161,0.00272321,3167.9,3167.3,0.87831843]
[1768889654364,0.26267837,3168.2,3166.8,0.00273458]
[1768889654666,0.26267837,3168.0,3166.9,8.04731843]
[1768889655362,0.26556883,3168.0,3167.0,4.009]
[1768889655564,0.26556883,3168.0,3167.0,7.169]
[1768889655868,0.26556883,3168.0,3166.8,0.00273458]
[1768889656165,0.26556883,3168.0,3166.8,4.01073458]
[1768889656557,0.26556883,3168.0,3166.9,4.008]
[1768889657762,0.26267837,3167.0,3165.3,2.81773984]
[1768889657959,0.26267837,3167.0,3165.8,0.87831843]
[1768889658162,0.26267837,3167.0,3165.9,7.166]
[1768889658360,0.26267837,3167.0,3165.9,47.966]
[1768889658969,0.26267837,3167.0,3166.0,7.166]
[1768889659568,0.26267837,3167.0,3165.9,0.00334763]
[1768889659763,0.26267837,3167.0,3166.0,4.007]
[1768889660167,0.26267837,3167.0,3165.9,0.00334763]
[1768889660465,0.26267837,3167.0,3166.0,4.008]
[1768889661867,0.26267837,3167.0,3166.1,4.01]
[1768889663059,0.26267837,3167.0,3165.9,0.00334763]
[1768889663264,0.26267837,3167.0,3166.2,4.011]
[1768889666466,0.26267837,3167.0,3165.9,0.00334763]
[1768889666665,0.26267837,3167.0,3166.0,7.175]
[1768889667364,0.26267837,3167.0,3166.1,4.016]
[1768889667560,0.26267837,3167.0,3166.2,4.016]
[1768889668367,0.26267837,3167.0,3165.9,0.00334763]
[1768889668667,0.26267837,3167.0,3166.0,7.178]
[1768889669062,0.26267837,3167.0,3166.1,4.018]
[1768889669264,0.26267837,3167.0,3166.2,4.018]
[1768889670260,0.26267837,3167.0,3166.3,4.019]
[1768889671365,0.26267837,3167.0,3165.9,0.00334763]
[1768889671568,0.26267837,3167.0,3166.4,4.02]
[1768889672568,0.26267837,3167.0,3165.9,0.00334763]
[1768889672769,0.22898591,3167.5,3166.0,4.021]
[1768889672961,0.38697591,3167.5,3166.0,7.181]
[1768889673156,0.22898591,3167.4,3165.9,0.00334763]
[1768889673361,0.22898591,3167.4,3166.1,4.02]
[1768889675969,0.22898591,3167.4,3166.2,7.178]
[1768889676190,0.22898591,3167.3,3165.9,0.00334763]
[1768889676367,0.22898591,3167.0,3165.9,0.00334763]
[1768889676567,0.22898591,3167.0,3166.0,4.017]
[1768889678173,0.22898591,3167.6,3166.0,4.017]
[1768889679871,0.22898591,3167.0,3166.0,4.017]
[1768889680073,0.22898591,3167.0,3166.1,4.017]
[1768889682270,0.22898591,3167.0,3166.1,4.015]
[1768889684973,0.19576764,3167.7,3166.1,4.015]
[1768889685170,0.19576764,3167.5,3166.1,4.015]
[1768889685371,0.19576764,3167.3,3166.1,4.015]
[1768889687883,0.19576764,3167.3,3166.2,7.169]
[1768889690381,0.19576764,3167.3,3166.0,40.8]
[1768889690584,0.19576764,3167.3,3166.1,7.17]
[1768889691083,0.19576764,3167.7,3166.3,0.87877387]
[1768889691282,0.19576764,3167.4,3166.0,43.61773984]
[1768889691471,0.19576764,3167.2,3165.9,0.00334763]
[1768889691674,0.19576764,3167.2,3166.0,7.173]
[1768889696183,0.19576764,3167.2,3166.1,7.179]
[1768889697991,0.15799,3167.5,3166.1,7.179]
[1768889698194,0.15799,3167.5,3166.2,0.87877387]
[1768889698492,0.15799,3167.5,3166.3,40.8]
[1768889698681,0.20727849,3167.6,3166.3,40.8]
[1768889700796,0.20727849,3167.6,3166.6,0.87877387]
[1768889701801,0.21016895,3168.0,3166.7,7.188]
[1768889704601,0.00289046,3168.0,3166.7,7.188]
[1768889704906,0.00289046,3168.0,3167.0,0.87877387]
[1768889705122,0.20727849,3168.5,3167.0,0.87877387]
[1768889706112,0.21032894,3168.5,3167.0,0.87877387]
[1768889707810,0.21032894,3168.5,3167.1,7.19]
[1768889708310,0.21032894,3168.5,3167.0,0.87877387]
[1768889708510,0.21032894,3168.5,3167.1,7.189]
[1768889708712,0.21032894,3168.5,3167.2,7.189]
[1768889709212,0.21032894,3168.5,3167.3,7.188]
[1768889709397,0.21032894,3168.5,3167.4,4.028]
[1768889709804,0.21032894,3168.5,3167.4,4.90677387]
[1768889710207,0.95248024,3169.3,3167.4,4.90677387]
[1768889710906,0.95248024,3169.3,3167.8,0.87877387]
[1768889711314,0.15791,3169.2,3167.5,40.8]
[1768889711509,0.15792,3168.9,3167.6,4.026]
[1768889711711,0.15792,3168.9,3167.6,4.027]
[1768889712308,0.20727849,3168.8,3167.6,4.027]
[1768889713515,0.20727849,3168.8,3167.3,40.8]
[1768889713809,0.36520849,3168.8,3167.4,4.026]
[1768889714015,0.36520849,3168.7,3167.4,4.026]
[1768889714213,0.20727849,3168.5,3167.3,43.959]
[1768889714514,0.20727849,3168.5,3167.5,4.027]
[1768889716109,0.20727849,3168.5,3167.6,4.029]
[1768889716309,0.20727849,3168.5,3166.8,40.8]
[1768889716515,0.20727849,3168.5,3167.2,0.87877387]
[1768889720419,0.20727849,3168.5,3167.3,40.8]
[1768889722316,0.20727849,3169.1,3167.6,0.87877387]
[1768889722512,0.20727849,3169.1,3167.7,3.159]
[1768889723518,0.20727849,3169.1,3167.6,0.87877387]
[1768889723721,0.20727849,3169.1,3167.8,4.037]
[1768889723922,0.20727849,3169.1,3167.6,0.87877387]
[1768889724123,0.20727849,3169.1,3167.7,7.197]
[1768889724519,0.15791,3169.2,3167.8,0.87877387]
[1768889725312,0.50986046,3169.1,3167.3,44.01313576]
[1768889725518,0.50986046,3169.1,3167.4,7.199]
[1768889726616,0.50986046,3169.1,3167.3,41.83677387]
[1768889726818,0.50986046,3169.1,3167.4,7.202]
[1768889728526,0.50986046,3169.1,3167.5,7.62095359]
[1768889728923,0.50986046,3169.1,3167.3,41.83677387]
[1768889729127,0.50986046,3169.1,3167.3,40.958]
[1768889729324,0.50986046,3169.1,3167.4,7.208]
[1768889731031,0.50986046,3169.1,3167.8,0.8776474]
[1768889731333,0.50986046,3168.9,3167.6,0.8776474]
[1768889731526,0.50986046,3168.9,3167.7,4.054]
[1768889731928,0.50986046,3168.9,3167.9,0.8776474]
[1768889733831,0.15791,3169.2,3168.2,0.8776474]
[1768889734035,0.82854128,3169.1,3168.3,4.057]
[1768889734232,0.15791,3169.2,3168.3,4.057]
[1768889735438,0.83093118,3169.1,3168.4,4.055]
[1768889735636,0.15791,3169.2,3168.4,4.055]
[1768889735839,0.830931,3169.1,3168.4,4.055]
[1768889736141,0.15791,3169.2,3168.4,4.055]
[1768889736442,0.83093118,3169.1,3168.4,4.055]
[1768889736731,0.66777046,3169.2,3168.5,4.054]
[1768889737131,0.83096252,3169.1,3168.5,4.054]
[1768889737339,0.66777046,3169.2,3168.4,4.053]
[1768889737635,0.83100052,3169.1,3168.4,4.053]
[1768889737936,0.50986046,3169.1,3168.2,0.00364668]
[1768889738233,0.50986046,3168.9,3168.2,0.00364668]
[1768889739029,1.34095098,3168.8,3168.2,0.00364668]
[1768889739239,0.50986046,3168.8,3168.2,0.00364668]
[1768889743530,0.50986046,3168.8,3167.7,4.046]
[1768889743730,0.50986046,3168.8,3167.6,0.8776474]
[1768889743933,0.50986046,3168.8,3167.7,4.046]
[1768889744449,0.83126819,3168.7,3167.7,0.00263082]
[1768889744633,0.50986046,3168.8,3167.7,4.04963082]
[1768889744829,1.92445606,3168.7,3167.7,4.04963082]
[1768889745031,1.09316198,3168.7,3167.7,4.04963082]
[1768889745341,0.83140986,3168.6,3167.7,4.04963082]
[1768889745538,1.09316198,3168.7,3167.7,4.04963082]
[1768889745731,0.83140986,3168.6,3167.7,4.04963082]
[1768889745931,1.09316198,3168.7,3167.7,0.00263082]
[1768889746131,0.15799,3167.6,3166.4,3.93298677]
[1768889746339,0.8776474,3167.4,3165.8,4.049]
[1768889746535,1.09316198,3167.5,3165.8,4.9266474]
[1768889746737,0.83367784,3167.4,3166.1,0.8776474]
[1768889747035,1.09316198,3167.5,3166.1,0.8776474]
[1768889747246,1.92684267,3167.4,3166.1,0.00331598]
[1768889747535,1.09316198,3167.4,3166.1,0.00331598]
[1768889750440,1.97080938,3166.9,3166.1,0.00331598]
[1768889750642,1.97427045,3166.9,3166.1,0.00331598]
[1768889751438,1.09316198,3166.8,3166.1,0.0003681]
[1768889751829,0.8776474,3166.3,3164.7,2.06030172]
[1768889752038,0.8776474,3166.3,3164.8,4.044]
[1768889752435,1.09316198,3166.3,3164.7,1.18265432]
[1768889752742,1.09316198,3166.3,3164.5,0.8776474]
[1768889752743,0.8776474,3166.1,3164.6,4.043]
[1768889752936,1.09316198,3166.3,3164.7,0.00333636]
[1768889754846,1.25121198,3166.3,3164.7,0.00333636]
[1768889755536,1.43052864,3166.0,3164.7,0.00333636]
[1768889758334,1.43052864,3166.4,3164.7,0.00333636]
[1768889759046,1.43052864,3166.1,3164.7,0.00333636]
[1768889759544,1.58858864,3166.1,3164.7,0.00333636]
[1768889759848,1.43052864,3165.9,3164.7,0.00333636]
[1768889760041,1.43052864,3165.5,3164.7,0.00333636]
[1768889760347,1.43052864,3166.7,3164.7,0.00333636]
[1768889760548,1.43052864,3166.5,3164.7,0.00333636]
[1768889760849,1.58858864,3166.1,3164.7,0.00333636]
[1768889762249,1.43052864,3165.9,3164.7,0.00333636]
[1768889762449,1.43052864,3165.7,3164.7,0.00333636]
[1768889762844,1.43052864,3165.5,3164.7,0.00333636]
[1768889763349,1.43052864,3165.5,3163.9,40.8]
[1768889763350,1.58861864,3165.5,3163.9,40.8]
[1768889763552,1.43052864,3165.3,3163.6,1.54198348]
[1768889764077,1.43052864,3165.3,3163.7,40.8]
[1768889764258,1.58862864,3165.3,3163.7,40.8]
[1768889764547,1.58862864,3165.3,3163.7,0.00384533]
[1768889774959,1.58862864,3165.3,3163.8,4.057]
[1768889775671,1.43052864,3165.3,3163.8,4.057]
[1768889775868,1.43052864,3165.8,3163.9,1.40638316]
[1768889777363,0.82962796,3165.7,3163.9,1.40638316]
[1768889777563,1.43052864,3165.8,3163.9,1.40638316]
[1768889777763,0.82962492,3165.7,3163.9,1.40638316]
[1768889777960,1.43052864,3165.8,3163.9,1.40638316]
[1768889778160,0.82961178,3165.7,3163.9,1.40638316]
[1768889778465,1.43052864,3165.8,3163.9,1.40638316]
[1768889778656,0.83012081,3165.7,3163.9,1.40638316]
[1768889778857,1.43052864,3165.8,3163.9,1.40638316]
[1768889779059,0.8301212,3165.7,3163.9,1.40638316]
[1768889779364,1.43052864,3165.8,3163.9,1.40638316]
[1768889779761,1.43052864,3165.8,3164.1,1.40638316]
[1768889780068,0.15807,3165.9,3164.1,1.40638316]